bitfinex/quotes_ETHUSD_20251025
["timestamp","ask_amount","ask_price","bid_price","bid_amount"]
[1761398252166,0.00032044,3944.8,3944.7,12.95043054]
[1761398254057,0.00032044,3944.8,3944.7,9.75843054]
[1761398254222,0.00032044,3944.8,3944.7,12.95043054]
[1761398265476,0.00032044,3944.8,3944.7,12.94943054]
[1761398265716,0.00032044,3944.8,3944.7,9.75843054]
[1761398265886,0.00032044,3944.8,3944.7,12.94943054]
[1761398271142,0.00032044,3944.8,3944.7,14.31691921]
[1761398271837,0.00032044,3944.8,3944.7,12.94943054]
[1761398272338,0.00032044,3944.8,3944.7,14.31690391]
[1761398274835,0.00032044,3944.8,3944.7,9.57676497]
[1761398275217,0.00032044,3944.8,3944.7,10.00946497]
[1761398276429,0.00032044,3944.8,3944.7,10.27341365]
[1761398276637,0.00032044,3944.8,3944.7,10.6370786]
[1761398276833,0.00032044,3944.8,3944.7,12.46010378]
[1761398278749,0.00032044,3944.8,3944.7,10.6370786]
[1761398281455,0.00032044,3944.8,3944.7,12.5370786]
[1761398283356,0.00032044,3944.8,3944.7,12.27312992]
[1761398283745,0.00032044,3944.8,3944.7,14.09463758]
[1761398283942,0.00032044,3944.8,3944.7,12.27312992]
[1761398284155,0.00032044,3944.8,3944.7,11.90946497]
[1761398285162,0.00032044,3944.8,3944.7,13.730971]
[1761398285534,0.00032044,3944.8,3944.7,11.90946497]
[1761398286166,0.00032044,3944.8,3944.7,13.730971]
[1761398286563,0.00032044,3944.8,3944.7,11.90946497]
[1761398287471,0.00032044,3944.8,3944.7,13.730971]
[1761398287769,0.00032044,3944.8,3944.7,6.81846497]
[1761398287957,0.00032044,3944.8,3944.7,11.90846497]
[1761398292075,0.00032044,3944.8,3944.7,5.87888497]
[1761398292278,0.22612044,3944.8,3944.7,9.06888497]
[1761398292477,0.00032044,3944.8,3944.7,9.06888497]
[1761398293040,0.00032044,3944.8,3944.7,8.02056497]
[1761398293259,0.00032044,3944.8,3944.7,10.94159931]
[1761398293476,0.22612044,3944.8,3944.7,10.43471931]
[1761398293647,0.22612044,3944.8,3944.7,10.94159931]
[1761398293842,0.09932044,3944.8,3944.7,9.57576497]
[1761398294147,0.09932044,3944.8,3944.7,9.06888497]
[1761398294851,0.09932044,3944.8,3944.7,7.40664702]
[1761398296774,0.09932044,3944.8,3944.7,5.72504702]
[1761398296973,0.22742044,3944.8,3944.7,7.28024702]
[1761398297180,0.09932044,3944.8,3944.7,7.28024702]
[1761398300881,0.00032044,3944.8,3944.7,7.28024702]
[1761398301279,0.00032044,3944.8,3944.7,9.19382567]
[1761398304347,0.00032044,3944.8,3943.9,1.82350603]
[1761398304547,0.50688,3943.8,3942.4,0.12364676]
[1761398304789,0.50688,3943.8,3941.8,2.40849536]
[1761398304790,0.2096,3941.9,3941.8,0.13237703]
[1761398304956,4.23390093,3941.9,3939.6,0.4466]
[1761398305280,4.23390093,3941.9,3939.3,6.78807074]
[1761398305281,4.23390093,3941.9,3939.8,2.5381999]
[1761398305282,1.57366812,3941.8,3939.8,2.5381999]
[1761398305492,4.24960869,3941.5,3940.0,2.53801155]
[1761398305649,4.24960869,3941.5,3939.3,0.7617703]
[1761398305650,2.53729498,3941.3,3940.1,3.219]
[1761398305855,0.56732593,3941.2,3940.1,5.75700073]
[1761398306164,0.56732593,3941.2,3940.1,5.75700403]
[1761398306165,0.78725767,3941.2,3940.1,5.75700403]
[1761398306347,0.78725767,3941.2,3939.8,2.53816887]
[1761398306348,0.48926508,3941.1,3940.0,2.53806369]
[1761398306549,0.1272,3940.8,3940.2,0.1272]
[1761398306890,0.02534227,3940.7,3940.2,0.1272]
[1761398307115,0.12434227,3940.7,3940.2,0.1272]
[1761398307314,0.12434227,3940.7,3940.3,3.219]
[1761398307488,0.099,3940.6,3940.3,3.3462]
[1761398307822,0.099,3940.6,3940.5,2.53774901]
[1761398307991,0.099,3940.6,3940.5,2.66494901]
[1761398309502,0.099,3940.6,3940.5,0.1272]
[1761398309913,0.099,3940.6,3940.5,2.66494901]
[1761398311093,0.15254227,3941.1,3940.5,2.66494901]
[1761398311094,0.1272,3941.1,3940.5,2.66494901]
[1761398311418,0.7619154,3941.2,3940.6,3.221]
[1761398311419,0.099,3941.2,3940.6,3.221]
[1761398311618,0.099,3941.1,3940.0,1.5552]
[1761398311820,0.099,3941.1,3940.5,2.5376867]
[1761398312118,0.099,3941.1,3940.7,2.53761332]
[1761398312285,0.099,3941.1,3940.8,3.22]
[1761398313520,0.099,3941.1,3939.8,2.53814234]
[1761398313521,0.099,3941.1,3939.5,0.92414605]
[1761398313690,0.099,3941.1,3939.6,3.221]
[1761398313889,0.02534227,3941.0,3940.3,2.53787527]
[1761398314090,0.02534227,3941.0,3940.4,3.221]
[1761398314303,0.099,3940.9,3940.4,3.221]
[1761398314813,0.099,3940.9,3940.3,2.53787527]
[1761398315015,0.76190572,3940.8,3940.4,3.22]
[1761398315354,0.76190572,3940.8,3940.4,5.75780098]
[1761398315644,0.099,3940.7,3940.5,2.53774053]
[1761398316026,0.099,3940.7,3940.6,3.22]
[1761398318354,0.099,3940.7,3940.4,2.5378004]
[1761398318621,0.099,3940.7,3940.6,3.22]
[1761398318942,0.76190572,3940.9,3940.8,2.53755582]
[1761398319146,0.86090572,3940.9,3940.8,2.53755582]
[1761398319655,0.86090572,3940.9,3940.6,3.22]
[1761398319957,0.099,3940.8,3940.7,2.53760262]
[1761398320156,0.76190572,3940.9,3940.8,2.53755582]
[1761398320357,0.12434227,3941.3,3940.8,2.53750511]
[1761398320656,0.76184768,3941.2,3940.9,3.22]
[1761398320853,0.86084768,3941.2,3940.9,3.22]
[1761398321061,0.099,3941.1,3940.9,3.22]
[1761398321232,0.02534227,3941.0,3940.1,1.5552]
[1761398321560,0.02534227,3941.0,3939.7,0.4587]
[1761398321561,0.25154227,3941.1,3940.6,2.53767064]
[1761398321746,0.099,3941.0,3940.7,3.22]
[1761398322140,0.099,3941.0,3940.5,0.1272]
[1761398322346,0.02534227,3940.9,3940.6,3.22]
[1761398322541,0.47940614,3941.0,3940.7,2.53761866]
[1761398322766,0.099,3940.9,3940.6,3.22]
[1761398323349,0.099,3940.9,3940.7,3.22]
[1761398325278,0.53593856,3940.8,3940.7,3.22]
[1761398325770,0.63493856,3940.8,3940.5,0.1272]
[1761398325946,0.099,3940.7,3940.6,3.219]
[1761398326147,0.63530322,3940.7,3940.6,3.219]
[1761398327277,1.54262709,3940.7,3940.6,5.75668461]
[1761398327477,0.63530322,3940.7,3940.6,5.75668461]
[1761398328386,1.30671792,3940.7,3940.6,5.75668461]
[1761398328590,1.30671792,3940.7,3940.6,3.219]
[1761398329248,0.63530322,3940.7,3940.6,5.75668461]
[1761398329449,0.63530322,3940.7,3940.6,3.219]
[1761398330099,0.63530322,3940.7,3940.4,2.53980728]
[1761398330288,0.27432228,3940.7,3940.6,3.218]
[1761398330610,0.81258421,3940.7,3940.6,3.218]
[1761398330826,0.81258421,3940.7,3940.4,0.002]
[1761398330827,0.93692648,3940.7,3940.4,0.002]
[1761398331100,2.40718489,3940.7,3940.6,3.217]
[1761398331266,0.83862823,3940.7,3940.6,1.84635388]
[1761398331462,0.63796368,3940.7,3940.6,1.84635388]
[1761398331674,1.42525425,3940.7,3940.6,1.84635388]
[1761398332279,1.42525425,3940.7,3940.4,0.002]
[1761398332475,1.98810681,3940.6,3940.4,0.002]
[1761398332685,0.53896368,3940.5,3940.4,0.002]
[1761398332870,0.63796368,3940.5,3940.4,3.219]
[1761398334402,0.9158529,3940.5,3940.0,2.54006443]
[1761398334592,1.3612026,3940.2,3940.1,3.216]
[1761398334795,0.53896368,3940.2,3940.1,3.216]
[1761398335319,0.63796368,3940.2,3940.1,3.216]
[1761398335612,1.54573334,3940.2,3940.1,3.216]
[1761398335784,1.54573334,3940.2,3940.0,0.002]
[1761398335980,0.66330595,3940.1,3940.0,0.002]
[1761398336184,0.66330595,3940.1,3940.0,3.218]
[1761398336512,1.34396446,3940.1,3940.0,3.218]
[1761398336678,1.21962219,3940.1,3940.0,5.75607106]
[1761398336999,1.21962219,3940.1,3940.0,3.218]
[1761398338713,1.21962219,3940.1,3940.0,5.75607106]
[1761398339233,0.53896368,3940.1,3940.0,5.75607106]
[1761398340213,0.53896368,3940.1,3940.0,3.218]
[1761398340421,0.53896368,3940.1,3940.0,5.75607106]
[1761398341115,1.21962219,3940.1,3940.0,6.19347106]
[1761398341415,1.21962219,3940.1,3940.0,5.75607106]
[1761398342514,0.53896368,3940.1,3940.0,6.19347106]
[1761398342815,0.53896368,3940.1,3940.0,7.07935524]
[1761398343017,0.001,3940.7,3940.1,2.53800664]
[1761398343221,0.54429104,3940.6,3940.5,2.53774901]
[1761398343382,0.54429104,3940.6,3940.5,5.75374901]
[1761398343590,0.54429104,3940.6,3940.5,5.88094901]
[1761398344010,0.54429104,3940.6,3940.5,2.66494901]
[1761398344315,0.54429104,3940.6,3940.5,5.88094901]
[1761398344522,0.54429104,3940.6,3940.5,2.66494901]
[1761398345029,0.54429104,3940.6,3940.5,6.31834901]
[1761398346822,0.001,3940.7,3940.6,2.53768461]
[1761398347023,0.54535705,3940.7,3940.6,2.97508461]
[1761398347223,0.001,3940.7,3940.6,2.97508461]
[1761398353139,0.001,3940.7,3940.6,3.07665346]
[1761398353844,0.001,3940.7,3940.0,0.002]
[1761398353845,2.53800664,3940.1,3940.0,0.002]
[1761398354048,7.73020415,3940.1,3940.0,0.002]
[1761398354244,2.5381964,3939.9,3939.0,0.991]
[1761398354414,8.95367777,3940.1,3939.0,0.991]
[1761398354415,2.53826433,3939.7,3939.0,0.991]
[1761398354615,0.54397948,3939.7,3939.0,0.991]
[1761398354919,1.10725211,3939.7,3939.5,3.239]
[1761398355124,3.64551644,3939.7,3939.5,3.239]
[1761398355726,3.67085871,3939.7,3939.5,3.239]
[1761398355955,1.13259438,3939.7,3939.5,3.239]
[1761398356449,0.5886149,3939.7,3939.4,3.238]
[1761398356620,1.13170486,3939.7,3939.4,3.238]
[1761398356823,0.5886149,3939.7,3939.4,3.238]
[1761398357013,0.097,3940.4,3939.6,2.54026747]
[1761398357208,0.02534227,3940.3,3939.6,2.54026747]
[1761398357412,0.02534227,3940.3,3939.7,2.53820614]
[1761398357612,0.12234227,3940.3,3939.8,3.24]
[1761398358038,0.097,3940.2,3939.8,3.24]
[1761398358349,0.02534227,3940.1,3939.6,2.54032845]
[1761398358641,0.02534227,3940.1,3939.7,3.24]
[1761398358944,0.097,3940.5,3939.8,2.53819247]
[1761398359112,0.25272,3940.5,3939.8,2.53819247]
[1761398359309,0.02534227,3940.4,3939.7,3.24]
[1761398359513,0.02534227,3940.4,3939.8,2.5381999]
[1761398359776,0.02534227,3940.4,3939.7,5.77825575]
[1761398359777,0.097,3940.3,3939.7,5.77825575]
[1761398359934,0.02534227,3940.2,3939.7,5.77825575]
[1761398360135,0.02534227,3940.2,3939.7,3.24]
[1761398360334,0.097,3940.1,3939.7,3.24]
[1761398360558,0.02534227,3940.0,3939.8,3.239]
[1761398360861,0.12234227,3940.1,3939.8,3.239]
[1761398361065,0.12234227,3940.4,3939.8,3.239]
[1761398361265,0.12234227,3940.4,3939.8,5.77719769]
[1761398361266,0.02534227,3940.4,3939.8,5.77719769]
[1761398362157,0.02534227,3940.4,3939.9,2.53813154]
[1761398362372,0.02534227,3940.4,3939.8,5.77719223]
[1761398362670,0.02634227,3940.6,3939.8,5.77719223]
[1761398362841,0.02634227,3940.6,3939.8,3.7092]
[1761398363169,0.02634227,3940.6,3940.3,2.53782711]
[1761398363170,0.001,3940.6,3940.3,2.53782711]
[1761398363369,0.001,3940.6,3940.4,3.238]
[1761398363533,0.001,3940.6,3940.4,5.77580475]
[1761398364566,0.001,3940.6,3940.4,5.77580541]
[1761398365075,0.001,3940.6,3940.4,3.238]
[1761398365570,0.001,3940.6,3940.4,5.77579812]
[1761398365870,0.001,3940.6,3940.5,2.53774901]
[1761398366979,0.001,3940.6,3940.5,3.00794901]
[1761398368359,0.001,3940.6,3940.5,2.53774901]
[1761398368670,0.001,3940.6,3940.5,3.00794901]
[1761398370276,0.001,3940.6,3940.5,2.53774901]
[1761398371477,0.001,3940.6,3940.5,3.00794901]
[1761398376897,0.001,3940.6,3940.5,3.89905083]
[1761398383034,0.001,3940.6,3940.4,0.1272]
[1761398383211,0.001,3940.6,3939.2,1.36589914]
[1761398383212,3.47815363,3940.5,3940.0,3.244]
[1761398383413,0.02534227,3940.4,3940.1,3.244]
[1761398383639,0.47289186,3940.4,3940.1,3.244]
[1761398383930,0.47289186,3940.4,3939.7,2.53824521]
[1761398384095,0.097,3940.3,3939.8,3.246]
[1761398384295,0.02534227,3940.2,3939.8,3.246]
[1761398384723,0.097,3940.1,3939.8,3.246]
[1761398386735,0.097,3940.1,3939.6,0.002]
[1761398386736,0.02534227,3940.2,3939.6,0.002]
[1761398386906,0.001,3940.7,3939.6,0.002]
[1761398386907,3.38215363,3940.6,3939.7,3.245]
[1761398387108,6.01690122,3940.6,3939.7,5.78324498]
[1761398387416,3.49032857,3940.5,3939.7,5.78324498]
[1761398387906,0.097,3940.4,3939.7,5.78324498]
[1761398388236,0.097,3940.4,3939.8,2.53819766]
[1761398388925,0.097,3940.4,3939.7,5.78324675]
[1761398389136,2.53826433,3939.7,3939.6,0.002]
[1761398389443,0.02534227,3939.7,3939.6,0.002]
[1761398389735,2.6606066,3939.7,3939.6,0.002]
[1761398390129,6.04176023,3939.7,3939.6,0.002]
[1761398390454,6.01641796,3939.7,3939.6,0.002]
[1761398390620,6.8718733,3939.7,3939.6,0.002]
[1761398390957,0.95245534,3939.7,3939.6,0.002]
[1761398391150,3.51606194,3939.7,3939.6,0.002]
[1761398393145,4.15014194,3939.7,3939.6,0.002]
[1761398393347,4.02294194,3939.7,3939.6,0.002]
[1761398395153,3.99759967,3939.7,3939.6,0.002]
[1761398395453,4.02294194,3939.7,3939.6,0.002]
[1761398395821,3.51606194,3939.7,3939.6,0.002]
[1761398396034,4.02294194,3939.7,3939.6,0.002]
[1761398396823,3.51606194,3939.7,3939.6,0.002]
[1761398397027,3.39371967,3939.7,3939.6,0.002]
[1761398397223,3.49071967,3939.7,3939.6,0.002]
[1761398397541,0.95245534,3939.7,3939.6,0.002]
[1761398397746,0.097,3939.7,3939.6,0.002]
[1761398398121,2.63526433,3939.7,3939.6,0.002]
[1761398398443,2.6606066,3939.7,3939.6,0.002]
[1761398402438,4.7226866,3939.7,3939.6,0.002]
[1761398403359,4.8498866,3939.7,3939.6,0.002]
[1761398403529,6.31943503,3939.7,3939.6,0.002]
[1761398403723,6.29409276,3939.7,3939.6,0.002]
[1761398411471,6.19709276,3939.7,3939.6,0.002]
[1761398415500,6.29409276,3939.7,3939.6,0.002]
[1761398417382,6.19709276,3939.7,3939.6,0.002]
[1761398419683,5.69021276,3939.7,3939.6,0.002]
[1761398420808,6.19709276,3939.7,3939.6,0.002]
[1761398421383,5.69021276,3939.7,3939.6,0.002]
[1761398422210,4.13501276,3939.7,3939.6,0.002]
[1761398422408,4.16035503,3939.7,3939.6,0.002]
[1761398423396,4.25735503,3939.7,3939.6,0.002]
[1761398424302,4.16035503,3939.7,3939.6,0.002]
[1761398426219,1.6220907,3939.7,3939.6,0.002]
[1761398426519,2.6908066,3939.7,3939.6,0.4539]
[1761398428035,0.15254227,3939.7,3939.6,0.4539]
[1761398429135,2.6908066,3939.7,3939.6,0.4539]
[1761398429514,0.15254227,3939.7,3939.6,0.4539]
[1761398429916,0.1272,3939.7,3939.6,0.4539]
[1761398430317,0.15254227,3939.7,3939.6,0.4539]
[1761398430514,0.1272,3939.7,3939.6,0.4539]
[1761398431543,0.15254227,3939.7,3939.6,0.4539]
[1761398431750,0.1272,3939.7,3939.6,0.4539]
[1761398432720,0.1272,3939.7,3939.6,3.6899]
[1761398433951,0.02634227,3940.0,3939.6,3.6899]
[1761398434116,0.1272,3939.8,3939.7,0.4519]
[1761398434847,0.1272,3939.8,3939.7,3.6869]
[1761398435058,0.1272,3939.8,3939.7,6.22516433]
[1761398435256,0.1272,3939.9,3939.7,6.22516433]
[1761398435418,0.1272,3939.9,3939.8,2.9900999]
[1761398435623,0.1272,3939.9,3939.8,0.4519]
[1761398436455,0.1272,3939.9,3939.8,2.9900999]
[1761398437220,0.001,3940.0,3939.9,2.53813548]
[1761398437421,0.001,3940.0,3939.9,2.99003548]
[1761398439066,0.001,3940.0,3939.9,0.4519]
[1761398440135,0.1282,3940.0,3939.9,3.6849]
[1761398441532,0.001,3940.0,3939.9,6.22303548]
[1761398442555,0.001,3940.0,3939.9,7.11208432]
[1761398442787,0.001,3940.0,3939.9,7.11008432]
[1761398443288,0.001,3940.0,3939.9,3.87908432]
[1761398443508,0.09956563,3940.3,3939.9,7.11008432]
[1761398443646,0.001,3940.4,3940.3,4.09307782]
[1761398443846,0.001,3940.4,3940.3,5.42761154]
[1761398444047,0.001,3940.4,3940.3,4.53507782]
[1761398444761,0.001,3940.4,3940.3,7.78407782]
[1761398448999,0.001,3940.4,3940.3,8.29095782]
[1761398449199,0.001,3940.4,3940.3,6.16523934]
[1761398449355,0.001,3940.4,3940.3,9.41323934]
[1761398449869,0.001,3940.4,3940.3,6.16523934]
[1761398450068,0.001,3940.4,3940.3,9.41323934]
[1761398453704,0.001,3940.4,3940.3,9.54043934]
[1761398454054,0.001,3940.4,3940.3,6.29243934]
[1761398454261,0.001,3940.4,3940.3,9.53743934]
[1761398456591,0.001,3940.4,3940.3,10.02031417]
[1761398456768,0.001,3940.4,3940.3,13.40031417]
[1761398456974,0.001,3940.4,3940.3,10.15531417]
[1761398457299,0.001,3940.4,3940.3,13.39931417]
[1761398460789,0.001,3940.4,3940.3,10.15531417]
[1761398460989,0.001,3940.4,3940.3,13.39631417]
[1761398462126,1e-08,3940.7,3940.6,4.09288461]
[1761398462328,1e-08,3940.7,3940.6,12.0449958]
[1761398462633,1e-08,3940.7,3940.6,12.93639379]
[1761398462927,1e-08,3940.7,3940.6,13.44327379]
[1761398463292,0.001,3941.2,3941.1,2.53736266]
[1761398463632,0.001,3941.2,3941.1,7.33256266]
[1761398463926,0.001,3941.2,3941.1,7.89366266]
[1761398464107,0.001,3941.2,3941.1,11.27366266]
[1761398471844,0.001,3941.2,3941.1,11.75653749]
[1761398472153,0.001,3941.2,3941.1,13.6306373]
[1761398472974,0.001,3941.2,3941.1,13.14776247]
[1761398473150,0.001,3941.2,3941.1,12.23849638]
[1761398473468,0.001,3941.2,3941.1,12.11129638]
[1761398474291,0.001,3941.2,3941.1,13.47699702]
[1761398474450,0.001,3941.2,3941.1,13.98387702]
[1761398474937,0.001,3941.2,3941.1,12.61817638]
[1761398478894,1e-08,3941.5,3941.4,3.04404953]
[1761398479041,0.001,3942.4,3942.3,4.09179031]
[1761398479346,0.001,3942.4,3942.3,7.32379031]
[1761398480181,0.001,3942.4,3942.3,7.75679031]
[1761398482380,0.001,3942.4,3942.3,4.52479031]
[1761398482684,0.001,3942.4,3942.3,7.75579031]
[1761398482983,0.001,3942.4,3942.3,8.37523678]
[1761398483482,0.001,3942.4,3942.3,8.50243678]
[1761398484154,0.001,3942.4,3942.3,4.21899031]
[1761398484467,0.001,3942.4,3942.3,5.76759031]
[1761398488595,0.001,3942.4,3942.3,7.32279031]
[1761398492070,0.001,3942.4,3942.3,7.75579031]
[1761398494196,0.001,3942.4,3942.3,7.32279031]
[1761398494399,0.001,3942.4,3942.3,7.44999031]
[1761398494697,0.001,3942.4,3942.3,7.44599031]
[1761398496716,0.001,3942.4,3942.3,8.9165697]
[1761398497216,0.001,3942.4,3942.3,9.3495697]
[1761398497385,0.001,3942.4,3942.3,12.7295697]
[1761398497826,0.001,3942.4,3942.3,13.63969893]
[1761398497993,0.001,3942.4,3942.3,14.12296193]
[1761398498340,0.001,3942.4,3942.3,13.21244453]
[1761398499614,0.001,3942.4,3942.3,12.7295697]
[1761398504639,0.001,3942.4,3942.3,13.2364497]
[1761398504837,0.001,3942.4,3942.3,14.05927132]
[1761398505137,0.001,3942.4,3942.3,14.16077419]
[1761398505825,0.001,3943.2,3943.1,3.04295567]
[1761398506144,0.001,3943.2,3943.1,13.13813361]
[1761398506303,0.001,3943.2,3943.1,12.77282607]
[1761398506499,0.001,3943.2,3943.1,12.87430757]
[1761398510324,0.001,3943.2,3943.1,14.23704058]
[1761398510720,0.001,3943.2,3943.1,8.22655274]
[1761398510924,0.001,3943.2,3943.1,11.95443274]
[1761398511245,0.001,3943.2,3943.1,12.38943274]
[1761398511614,0.001,3943.2,3943.1,12.87230757]
[1761398512130,0.001,3943.2,3943.1,9.65130757]
[1761398512314,0.001,3943.2,3943.1,12.87230757]
[1761398512515,0.001,3943.2,3943.1,5.91376849]
[1761398512706,0.001,3943.2,3943.1,7.74477124]
[1761398515637,0.001,3943.2,3943.1,8.17977124]
[1761398517028,0.001,3943.2,3943.1,7.74477124]
[1761398518561,0.001,3943.2,3943.1,7.74177124]
[1761398518939,0.001,3943.2,3943.1,4.52277124]
[1761398519460,0.001,3943.2,3943.1,7.74177124]
[1761398519660,0.001,3943.2,3943.1,4.52277124]
[1761398520061,0.001,3943.2,3943.1,7.74177124]
[1761398520862,0.001,3943.2,3943.1,4.52277124]
[1761398521245,0.001,3943.2,3943.1,7.74077124]
[1761398523474,0.001,3943.2,3943.1,8.68844607]
[1761398523643,0.001,3943.2,3943.1,9.59656849]
[1761398523827,0.001,3943.2,3943.1,9.59556849]
[1761398524028,0.001,3943.2,3943.1,7.73977124]
[1761398525366,0.001,3943.2,3943.1,4.52277124]
[1761398525576,0.001,3943.2,3943.1,7.73977124]
[1761398526977,0.001,3943.2,3943.1,4.21847567]
[1761398527130,0.1,3943.2,3943.1,4.21847567]
[1761398527334,0.1,3943.2,3943.1,7.43547567]
[1761398527775,0.1,3943.2,3943.1,3.3442]
[1761398528150,0.1,3943.2,3943.1,5.88027567]
[1761398528470,0.001,3943.2,3943.1,5.88027567]
[1761398530073,0.001,3943.2,3943.1,6.81539929]
[1761398531969,0.001,3943.2,3943.1,8.82049929]
[1761398532767,0.001,3943.2,3943.1,8.37059929]
[1761398535303,0.001,3943.2,3943.1,8.82049929]
[1761398535686,0.001,3943.2,3943.1,8.37059929]
[1761398541371,0.001,3943.2,3943.1,9.72862171]
[1761398541572,0.001,3943.2,3943.1,9.30337412]
[1761398542802,0.001,3943.2,3943.1,8.36759929]
[1761398543102,0.001,3943.2,3943.1,5.13004082]
[1761398543309,0.001,3943.2,3943.1,7.43247567]
[1761398544013,0.001,3943.2,3943.1,4.21847567]
[1761398544216,0.001,3943.2,3943.1,7.43247567]
[1761398544580,0.001,3943.2,3943.1,4.21847567]
[1761398544807,0.001,3943.2,3943.1,2.66327567]
[1761398544808,0.1,3943.2,3943.1,2.66327567]
[1761398544975,0.1,3943.2,3943.1,5.87727567]
[1761398545306,0.1,3943.2,3943.1,3.3412]
[1761398546089,0.1,3943.2,3943.1,5.87727567]
[1761398546604,0.001,3943.2,3943.1,5.87727567]
[1761398547200,0.1,3943.2,3943.1,5.87727567]
[1761398547378,0.1,3943.2,3943.1,0.1272]
[1761398547724,0.1,3943.2,3943.1,3.213]
[1761398548288,0.1,3943.2,3943.0,0.1272]
[1761398548484,0.1,3943.2,3943.1,3.213]
[1761398549298,0.37623005,3943.2,3942.8,0.002]
[1761398549626,0.37623005,3943.2,3942.9,3.213]
[1761398549814,0.099,3943.1,3943.0,3.213]
[1761398550119,0.099,3943.1,3942.9,2.53619944]
[1761398550286,0.001,3943.2,3943.0,2.53608346]
[1761398550630,0.001,3943.2,3943.1,3.213]
[1761398551124,0.1,3943.2,3943.1,3.213]
[1761398551323,0.1,3943.2,3943.1,5.74907567]
[1761398552123,0.001,3943.2,3943.1,5.74907567]
[1761398552323,0.001,3943.2,3943.1,8.13300323]
[1761398552643,0.001,3943.2,3943.1,8.26020323]
[1761398552916,0.001,3943.2,3943.1,8.71010323]
[1761398553127,0.001,3943.2,3943.1,5.04720323]
[1761398553310,0.001,3943.2,3943.1,8.26020323]
[1761398554623,0.001,3943.2,3943.1,8.71010323]
[1761398557828,0.001,3943.2,3943.1,8.65447369]
[1761398558528,0.001,3943.2,3943.1,5.44147369]
[1761398558725,0.001,3943.2,3943.1,8.65547369]
[1761398558947,0.001,3943.2,3943.1,8.65447369]
[1761398560628,0.001,3943.2,3943.1,7.37584613]
[1761398563984,0.1,3943.2,3943.1,3.213]
[1761398565815,0.1,3943.2,3943.1,3.215]
[1761398568517,0.001,3943.2,3943.1,5.75107567]
[1761398569353,0.1,3943.2,3943.1,5.75107567]
[1761398569648,0.001,3943.2,3943.1,5.75107567]
[1761398570034,0.1,3943.2,3943.1,5.75107567]
[1761398571100,0.001,3943.2,3943.1,5.75107567]
[1761398572197,0.1,3943.2,3943.1,3.215]
[1761398573402,0.001,3943.2,3943.1,3.215]
[1761398573607,0.1,3943.2,3943.1,3.215]
[1761398574305,0.1,3943.2,3943.1,0.002]
[1761398574504,0.1,3943.2,3943.1,3.214]
[1761398576291,0.1,3943.2,3943.1,0.002]
[1761398576607,0.1,3943.2,3943.1,3.214]
[1761398579022,0.1,3943.2,3943.1,0.002]
[1761398579611,0.1,3943.2,3943.1,3.214]
[1761398581214,0.001,3943.2,3943.1,3.214]
[1761398582223,0.001,3943.2,3943.1,0.002]
[1761398582420,0.001,3943.2,3943.1,3.214]
[1761398583732,0.001,3943.2,3943.1,5.75007567]
[1761398584611,0.001,3943.2,3943.1,6.20037567]
[1761398585127,0.001,3943.2,3943.1,2.53807567]
[1761398585303,0.001,3943.2,3943.1,3.214]
[1761398585710,0.001,3943.2,3943.1,5.75007567]
[1761398587828,0.001,3943.2,3943.1,2.53807567]
[1761398588031,0.001,3943.2,3943.1,5.75007567]
[1761398589055,0.001,3943.2,3943.1,6.20197567]
[1761398589253,0.001,3943.2,3943.1,9.02473762]
[1761398589420,0.001,3943.2,3943.1,5.81273762]
[1761398589620,0.001,3943.2,3943.1,9.02473762]
[1761398589851,0.001,3943.2,3943.1,8.57283762]
[1761398591451,0.001,3943.2,3943.1,9.02473762]
[1761398602938,0.001,3943.2,3943.1,5.36083762]
[1761398603142,0.001,3943.2,3943.1,7.43247567]
[1761398607808,0.001,3943.2,3943.1,4.22047567]
[1761398607970,0.001,3943.2,3943.1,7.43147567]
[1761398608382,0.001,3943.2,3943.1,4.22047567]
[1761398608580,0.001,3943.2,3943.1,7.30427567]
[1761398614027,0.001,3943.2,3943.1,7.75617567]
[1761398615203,0.001,3943.2,3943.1,4.54517567]
[1761398615420,0.001,3943.2,3943.1,7.75617567]
[1761398615886,0.001,3943.2,3943.1,8.87676552]
[1761398616323,0.001,3943.2,3943.1,9.78833067]
[1761398618604,0.001,3943.2,3943.1,9.00396552]
[1761398619325,0.001,3943.2,3943.1,9.9162178]
[1761398620927,0.001,3943.2,3943.1,9.00396552]
[1761398626221,0.001,3943.2,3943.1,9.9162178]
[1761398626446,0.001,3943.2,3943.1,9.00396552]
[1761398626814,0.001,3943.2,3943.1,9.9162178]
[1761398639325,0.001,3943.2,3943.1,9.00396552]
[1761398643359,0.001,3943.2,3943.1,10.36669853]
[1761398644575,0.001,3943.2,3943.1,9.96275935]
[1761398645563,0.001,3943.2,3943.1,10.06424883]
[1761398647189,0.001,3943.2,3943.1,9.96275935]
[1761398648182,0.001,3943.2,3943.1,10.28091405]
[1761398648449,0.001,3943.2,3943.1,6.29984552]
[1761398648648,0.001,3943.2,3943.1,9.50884552]
[1761398650564,0.001,3943.2,3943.1,6.29984552]
[1761398650882,0.001,3943.2,3943.1,9.50884552]
[1761398651589,0.001,3943.2,3943.1,6.29984552]
[1761398651957,0.001,3943.2,3943.1,9.50884552]
[1761398652485,0.001,3943.2,3943.1,6.29984552]
[1761398652860,0.001,3943.2,3943.1,9.50884552]
[1761398654969,0.001,3943.2,3943.1,9.50784552]
[1761398655186,0.001,3943.2,3943.1,6.29984552]
[1761398655471,0.001,3943.2,3943.1,9.50784552]
[1761398655871,0.001,3943.2,3943.1,9.60933835]
[1761398659518,0.001,3943.2,3943.1,5.44255835]
[1761398659679,0.001,3943.2,3943.1,8.54906552]